Cogmind - Beta 15 @@@ ROGUE MODE // 2025.08.25 @ 12:23:37 Player: shapeshifter Result: Destroyed by 8R-AWN with 8R-AWN's Boregun Performance ------------- Evolutions (1) 500 Regions Visited (5) 1000 Robots Destroyed (71) 355 Value Destroyed (1529) 1529 Prototype IDs (25) 500 Alien Tech Used (0) 0 Bonus (335) 335 TOTAL SCORE: 4219 Bonus ------- Follower Combat Kills 35 Aligned with FarCom 300 Cogmind --------- Core Integrity 0/400 Matter 74/300 Energy 100/100 System Corruption 0% Temperature Cool (0) Movement Rolling (90) Location -9/Exiles Parts ------- > --- POWER (1) -------- (None) > --- PROPULSION (3) --- Armored Wheel > --- UTILITY (2) ------ Salvage Targeting Computer Hardened Light Armor Plating > --- WEAPON (3) ------- Autogun > --- INVENTORY (5) ---- Light Treads Hacking Suite Improved Grenade Launcher Plasma Cutter Peak State ------------ > --- POWER ------------ Improved Ion Engine > --- PROPULSION ------- Light Treads Light Treads Light Treads > --- UTILITY ---------- Huge Storage Unit Light Armor Plating > --- WEAPON ----------- Heavy EM Shotgun Light Assault Rifle Light Assault Rifle > --- INVENTORY -------- Improved Ion Engine Light Nuclear Core Light Treads Light Treads Improved Treads Armored Wheel Improved Heat Sink High-capacity Storage Unit High-capacity Battery Improved Signal Interpreter Salvage Targeting Computer Salvage Targeting Computer Light Armor Plating Light Armor Plating Hardened Light Armor Plating Hacking Suite Light Assault Rifle Heavy Assault Rifle Heavy Assault Rifle Heavy Assault Rifle Autogun Improved Grenade Launcher Plasma Cutter [Rating: 17] Favorites ----------- Power Improved Ion Engine Engine Improved Ion Engine Propulsion Light Treads Treads Light Treads Wheel Wheel Flight Unit Improved Flight Unit Utility Huge Storage Unit Device Seismic Detector Storage Huge Storage Unit Processor Salvage Targeting Computer Protection Light Armor Plating Weapon Light Assault Rifle Energy Gun Heavy EM Shotgun Ballistic Gun Light Assault Rifle Launcher Improved Grenade Launcher Build | -11 -10 -10 -9 -9 -9 ------- Run | Yrd Mat Min Mat Min Exi Slots Evolved 2 | . . . 2 . . Power . | . . . . . . Propulsion 1 | . . . 1 . . Utility . | . . . . . . Weapon 1 | . . . 1 . . Parts Attached 53 | 7 5 2 25 . 14 Power 7 | 1 2 . 3 . 1 Engine 7 | 1 2 . 3 . 1 Core . | . . . . . . Reactor . | . . . . . . Propulsion 15 | 2 1 . 7 . 5 Treads 12 | 2 . . 6 . 4 Leg . | . . . . . . Wheel 2 | . 1 . . . 1 Hover . | . . . . . . Flight 1 | . . . 1 . . Utility 14 | 2 2 . 7 . 3 Device 1 | 1 . . . . . Storage 4 | 1 2 . 1 . . Processor 1 | . . . . . 1 Hackware . | . . . . . . Protection 8 | . . . 6 . 2 Artifact . | . . . . . . Weapon 17 | 2 . 2 8 . 5 Energy Gun 1 | . . . 1 . . Energy Cannon . | . . . . . . Ballistic Gun 15 | 2 . 2 7 . 4 Ballistic Cannon . | . . . . . . Launcher 1 | . . . . . 1 Special Weapon . | . . . . . . Impact Weapon . | . . . . . . Slashing Weapon . | . . . . . . Piercing Weapon . | . . . . . . Special Melee Weapon . | . . . . . . Unidentified Prototypes 2 | . . . 2 . . Parts Lost 19 | . . 1 5 . 13 Power 1 | . . . . . 1 Propulsion 8 | . . . 2 . 6 Utility 4 | . . . 2 . 2 Weapon 6 | . . 1 1 . 4 Highest Loss Streak 11 | . . 1 1 . 11 To Critical Strikes 7 | . . . . . 7 Average Backups 17 | 3 7 9 20 24 21 Power 1 | . 1 2 1 1 2 Propulsion 3 | 1 1 1 2 5 4 Utility 7 | . 1 3 9 11 8 Weapon 4 | 1 2 3 5 6 5 Tool/Special . | . . . . . . Unused Backups 29 | . 3 . 11 . 15 Power 6 | . 1 . 2 . 3 Propulsion 1 | . 1 . . . . Utility 15 | . . . 5 . 10 Weapon 6 | . 1 . 4 . 1 Tool/Special 1 | . . . . . 1 Average Slot Usage (%) 97 | . 100 100 97 100 95 Engine 11 | . 14 14 11 11 9 Treads 30 | . 23 28 31 33 30 Device 3 | . 14 14 . . . Storage 11 | . 14 14 11 11 9 Protection 7 | . . . 10 11 10 Ballistic Gun 31 | . 28 28 32 33 31 Peak Build Rating 17 | 7 9 10 17 14 17 Average Rating 12 | 4 8 9 14 14 14 On Entrance 9 | . 7 9 10 14 14 Naked Turns . | . . . . . . Heaviest Build 100 | 13 92 32 99 94 100 Greatest Support 60 | 40 40 40 60 60 60 Greatest Overweight (x) 9 | . 9 . 1 1 1 Average Overweight (x) . | . 2 . . 1 . Largest Inventory Capacity 25 | 8 25 15 25 25 25 Average Capacity 20 | 7 13 15 22 25 22 Most Carried 25 | 5 9 13 25 24 25 Average Carried 17 | 3 7 9 20 24 21 Final Capacity 25 | 8 15 15 25 25 5 Final Carried 24 | 3 9 12 24 24 4 Class Distribution -------------------- 64% | Scavenger-Tank 29% | Mutant 4% | Tank Dominant Class ---------------- Mutant | -10/Materials Mutant | -10/Mines Scavenger-Tank | -9/Materials Scavenger-Tank | -9/Mines Scavenger-Tank | -9/Exiles Resources | -11 -10 -10 -9 -9 -9 ----------- Run | Yrd Mat Min Mat Min Exi Matter Collected 1707 | 330 166 164 852 75 120 Remotely . | . . . . . . Salvage Created 2530 | 141 205 94 1965 113 12 Parts 157 | 9 21 8 116 3 . Haulers Intercepted 4 | . . . 4 . . Recyclers Shooed 6 | . 1 . 5 . . Parts Field Recycled . | . . . . . . Retrieved Matter . | . . . . . . Parts Self-Destructed . | . . . . . . Prevented . | . . . . . . Kills | -11 -10 -10 -9 -9 -9 ------- Run | Yrd Mat Min Mat Min Exi Combat Hostiles Destroyed 55 | . 7 4 35 5 4 Guns 51 | . 7 4 35 5 . AOE 4 | . . . . . 4 Classes Destroyed 11 | 2 4 . 4 1 . Worker 2 | . 1 . 1 . . Builder 1 | . . . 1 . . Tunneler 4 | 3 1 . . . . Hauler 4 | . . . 4 . . Recycler 4 | 1 . . 3 . . Operator 1 | . . . 1 . . Watcher 7 | . 2 . 5 . . Swarmer 19 | . 6 3 10 . . Grunt 20 | . 1 1 16 2 . Sentry 9 | . . . 9 . . Assembled 7 | . . . . 3 4 Best Kill Streak 14 | 4 3 2 14 2 4 Combat Bots Only 5 | . 3 2 5 2 4 Max Kills in Single Turn 2 | 1 1 2 2 1 1 Gunslinging 1 | . . 1 . . . Exploded 1 | . . . . . 1 Melee . | . . . . . . Uniques/NPCs Destroyed . | . . . . . . Combat | -11 -10 -10 -9 -9 -9 -------- Run | Yrd Mat Min Mat Min Exi Hostile Shots Fired 371 | . 44 18 188 11 110 Missed 83 | . 8 4 55 2 14 Hits 288 | . 36 14 133 9 96 Projectile 288 | . 36 14 133 9 96 Critical Strikes 47 | . . . 5 1 41 Damage Taken 3738 | . 311 119 1577 117 1614 Core 479 | . 53 16 170 10 230 Absorbed by Shields . | . . . . . . Core Remaining (%) 86 | 100 . 72 . . . Volleys Fired 246 | 10 34 9 136 15 42 Largest 3 | 2 2 2 3 3 3 Hottest 63 | 40 40 40 63 60 63 Shots Fired 629 | 20 68 18 393 45 85 Gun 624 | 20 68 18 393 45 80 Cannon . | . . . . . . Launcher 5 | . . . . . 5 Special . | . . . . . . Kinetic 624 | 20 68 18 393 45 80 Thermal . | . . . . . . Explosive 5 | . . . . . 5 Electromagnetic . | . . . . . . Robot Hit Streak 15 | 4 5 3 13 8 15 Robot Miss Streak 6 | 6 5 4 4 2 4 Penetration Max . | . . . . . . Secondary Targets 8 | . 2 1 5 . . Max Gunslinging Chain 1 | . 1 1 1 . . Shots Hit Robots 394 | 12 33 8 259 26 56 Core Hits 161 | 5 15 6 104 12 19 Critical Kills 2 | . . . 2 . . Critical Parts Destroyed . | . . . . . . Critical Strikes 3 | . . . 3 . . Destroy 3 | . . . 3 . . Melee Attacks . | . . . . . . Impact . | . . . . . . Slashing . | . . . . . . Piercing . | . . . . . . Sneak Attacks . | . . . . . . Combat Hostiles . | . . . . . . Follow-up Attacks . | . . . . . . Damage Inflicted 4465 | 160 466 96 2574 266 903 Guns 4246 | 160 466 96 2574 266 684 Cannons . | . . . . . . Explosions 219 | . . . . . 219 Melee . | . . . . . . Ramming . | . . . . . . Kinetic 4246 | 160 466 96 2574 266 684 Thermal . | . . . . . . Explosive 219 | . . . . . 219 Electromagnetic . | . . . . . . Impact . | . . . . . . Slashing . | . . . . . . Piercing . | . . . . . . Highest Corruption . | . . . . . . Average Corruption . | . . . . . . Corruption Purged . | . . . . . . Corruption Blocked . | . . . . . . Overload Shots . | . . . . . . Overflow Damage 14 | . . . . . 14 Projectiles . | . . . . . . Explosions 14 | . . . . . 14 Melee . | . . . . . . Knockbacks . | . . . . . . Impact . | . . . . . . Kinetic . | . . . . . . Secondary . | . . . . . . Self-Inflicted Damage . | . . . . . . Shots . | . . . . . . Rammed . | . . . . . . Targets Rammed . | . . . . . . Kicked . | . . . . . . Crushed . | . . . . . . Highest Temperature 258 | . . 2 258 86 50 Average Temperature 50 | . . 1 55 26 15 Received Heat Transfer 816 | . 66 24 696 30 . Siege Activations . | . . . . . . Martial Activations . | . . . . . . Shielding Activations . | . . . . . . Robots Disrupted . | . . . . . . Combat Hostiles . | . . . . . . Robots Corrupted . | . . . . . . Combat Hostiles . | . . . . . . Parts Fried . | . . . . . . Impact Corruptions . | . . . . . . Robots Melted . | . . . . . . Combat Hostiles . | . . . . . . Parts Melted . | . . . . . . Heat Transferred . | . . . . . . Parts Sabotaged . | . . . . . . Parts Stolen . | . . . . . . Parts Stripped . | . . . . . . Power Chain Reactions . | . . . . . . Alert | -11 -10 -10 -9 -9 -9 ------- Run | Yrd Mat Min Mat Min Exi Maximum Alert Level 1 | . . . 1 . . Low Security (%) 62 | 100 100 100 30 100 . Level 1 37 | . . . 69 . . Level 2 . | . . . . . . Level 3 . | . . . . . . Level 4 . | . . . . . . Level 5 . | . . . . . . High Security . | . . . . . . Max Security . | . . . . . . Peak Influence 372 | 10 124 88 372 132 . Initial 132 | . . 28 27 132 . Average 128 | . 24 11 221 29 . Influence Increases 1446 | 20 207 138 1025 56 . Destroy 0b10 Robot/C 980 | . 140 100 700 40 . Destroy 0b10 Robot/NC 115 | 20 20 . 75 . . Destroy Leader 252 | . 34 20 188 10 . Allied During Kill 3 | . . 3 . . . Successful Hack 35 | . 13 . 16 6 . Disable Machine 30 | . . 15 15 . . Destroy Structure 1 | . . . 1 . . Lose Combat Pursuer 30 | . . . 30 . . Influence Decreases 1446 | 20 132 141 757 396 . Entered New Map 300 | . . 47 45 208 . Time Decay 1090 | 20 132 84 666 188 . Lost Part 56 | . . 10 46 . . Squads Dispatched 6 | . 3 . 3 . . Investigation 3 | . 2 . 1 . . Extermination . | . . . . . . Reinforcement 3 | . 1 . 2 . . Assault . | . . . . . . Garrison . | . . . . . . Intercept . | . . . . . . Searches Triggered . | . . . . . . Construction Impeded . | . . . . . . Haulers Reinforced . | . . . . . . Active Scanning Responses . | . . . . . . Cargo Convoy Interrupts . | . . . . . . Stealth | -11 -10 -10 -9 -9 -9 --------- Run | Yrd Mat Min Mat Min Exi Distress Signals 7 | . 1 . 5 1 . Communications Jammed . | . . . . . . Distress Signals . | . . . . . . Times Spotted 78 | . 15 5 46 5 7 Peak Tracking Total 9 | . 4 3 5 2 9 Tactical Retreats 1 | . . . 1 . . Traps | -11 -10 -10 -9 -9 -9 ------- Run | Yrd Mat Min Mat Min Exi Traps Triggered . | . . . . . . Indirectly . | . . . . . . Trap Hack Attempts . | . . . . . . Triggered . | . . . . . . Disarmed . | . . . . . . Reprogrammed . | . . . . . . Reused . | . . . . . . Traps Extracted . | . . . . . . Installed . | . . . . . . Triggered . | . . . . . . Machines | -11 -10 -10 -9 -9 -9 ---------- Run | Yrd Mat Min Mat Min Exi Machines Disabled 7 | . . 1 1 . 5 Max in Single Turn 2 | . . 1 1 . 2 Machines Repaired . | . . . . . . Machines Dismantled . | . . . . . . Machines Sabotaged . | . . . . . . Overloaded Fab Kills . | . . . . . . Hacking | -11 -10 -10 -9 -9 -9 --------- Run | Yrd Mat Min Mat Min Exi Machines Accessed 14 | . 6 . 5 1 2 Terminals 11 | . 5 . 5 1 . Fabricators . | . . . . . . Repair Stations . | . . . . . . Recycling Units 1 | . 1 . . . . Scanalyzers . | . . . . . . Garrison Access . | . . . . . . Total Hacks 32 | . 15 . 14 1 2 Successful 14 | . 7 . 4 1 2 Failed 18 | . 8 . 10 . . Catastrophic 9 | . 4 . 5 . . Database Lockouts . | . . . . . . Manual 22 | . 7 . 13 1 1 Terminals 27 | . 12 . 14 1 . Fabricators . | . . . . . . Repair Stations . | . . . . . . Recycling Units 3 | . 3 . . . . Scanalyzers . | . . . . . . Garrison Access . | . . . . . . Terminal Hacks 10 | . 4 . 3 1 2 Record 1 | . . . . . 1 Branch Access Points 1 | . . . 1 . . Registered Components 2 | . 1 . 1 . . Zone Layout 5 | . 3 . 1 1 . Proto ID Catalog 1 | . . . . . 1 Fabricator Hacks . | . . . . . . Repair Station Hacks . | . . . . . . Recycling Unit Hacks 2 | . 2 . . . . Report Inventory 1 | . 1 . . . . Retrieve Components 1 | . 1 . . . . Scanalyzer . | . . . . . . Garrison Access Hacks . | . . . . . . Unauthorized Hacks 2 | . 1 . 1 . . Terminals 2 | . 1 . 1 . . Botnet 2 | . 1 . 1 . . Fabricators . | . . . . . . Repair Stations . | . . . . . . Recycling Units . | . . . . . . Scanalyzers . | . . . . . . Garrison Access . | . . . . . . Data Cores Recovered . | . . . . . . Used . | . . . . . . Hacking Detections 11 | . 6 . 5 . . Full Trace Events 5 | . 3 . 2 . . Feedback Events . | . . . . . . Feedback Blocked . | . . . . . . Robot Schematics Acquired . | . . . . . . Robots Built . | . . . . . . Authchips . | . . . . . . Time . | . . . . . . Total Robot Build Rating . | . . . . . . Part Schematics Acquired . | . . . . . . Parts Built . | . . . . . . Authchips . | . . . . . . Time . | . . . . . . Total Part Build Rating . | . . . . . . Parts Repaired . | . . . . . . Time . | . . . . . . Parts Recycled . | . . . . . . Recycled Matter . | . . . . . . Retrieved Matter . | . . . . . . Retrieved Components 2 | . 2 . . . . Parts Scanalyzed . | . . . . . . Part Schematics Acquired . | . . . . . . Parts Damaged . | . . . . . . Bothacking | -11 -10 -10 -9 -9 -9 ------------ Run | Yrd Mat Min Mat Min Exi Used RIF Installer . | . . . . . . Robots Hacked . | . . . . . . Non-combat . | . . . . . . Combat . | . . . . . . Robot Hacks Applied . | . . . . . . Relay Couplers Released . | . . . . . . Fabnet Peak Effective % . | . . . . . . Robots Rewired . | . . . . . . Allies Hacked . | . . . . . . Hacks Repelled . | . . . . . . Allies | -11 -10 -10 -9 -9 -9 -------- Run | Yrd Mat Min Mat Min Exi Total Allies 1 | . . 1 . . . Largest Group 1 | . . 1 . . . Highest-Rated Group 31 | . . 31 . . . Highest-Rated Ally 31 | . . 31 . . . Total Orders . | . . . . . . Ally Attacks 8 | . . 8 . . . Total Damage 105 | . . 105 . . . Kills 1 | . . 1 . . . Allies Corrupted . | . . . . . . Allies Melted . | . . . . . . Intel | -11 -10 -10 -9 -9 -9 ------- Run | Yrd Mat Min Mat Min Exi Active Infowar (turns) 1474 | 25 730 661 58 . . Seismic 1474 | 25 730 661 58 . . Robot Analysis Total . | . . . . . . Derelict Logs Recovered 2 | . . 2 . . . Drone Launches . | . . . . . . Drone Recoveries . | . . . . . . Exploration | -11 -10 -10 -9 -9 -9 ------------- Run | Yrd Mat Min Mat Min Exi Turns Passed 6011 | 154 730 661 2646 729 1091 Spaces Moved 2421 | 77 320 378 981 275 390 Core 14 | 14 . . . . . Treads 2323 | 63 238 378 981 275 388 Legs . | . . . . . . Wheels 84 | . 82 . . . 2 Hover . | . . . . . . Flight . | . . . . . . Fastest Speed 50 | 50 160 160 160 240 90 Average Speed 205 | 140 174 160 217 240 236 Slowest Speed 240 | 160 215 160 240 240 240 Overloaded Moves . | . . . . . . Propulsion Burnouts . | . . . . . . Robots Hopped . | . . . . . . Potential Cave-ins . | . . . . . . Cave-ins Triggered . | . . . . . . Exploration Rate (%) 60 | 5 46 81 91 70 67 Regions Visited 5 Branch Regions 3 Pre-discovered Areas 2 | . . 1 . . 1 Known Exits Taken 1 | . . . 1 . . Unknown Exits Taken 4 | 1 1 1 . 1 . Scrap Searched 3 | . . 2 . 1 . Spaces Dug . | . . . . . . Terrain Destroyed 33 | . . . . . 33 Melee . | . . . . . . Projectile . | . . . . . . AOE 33 | . . . . . 33 Terrain Rammed . | . . . . . . Walls Destroyed . | . . . . . . Machines Disabled . | . . . . . . Actions | -11 -10 -10 -9 -9 -9 --------- Run | Yrd Mat Min Mat Min Exi Total 3024 | 103 426 418 1266 317 494 Wait 167 | . 50 24 42 28 23 Move 2416 | 76 319 377 980 274 390 Hop . | . . . . . . Pick Up 85 | 10 11 5 47 . 12 Fast Attach 2 | . . . . . 2 Attach 25 | 7 . 2 10 . 6 Detach . | . . . . . . Swap 34 | . 6 . 20 . 8 Drop 49 | . 6 1 31 . 11 Fire 246 | 10 34 9 136 15 42 Melee . | . . . . . . Ram . | . . . . . . Kick . | . . . . . . Crush . | . . . . . . Escape Stasis . | . . . . . . Rewire . | . . . . . . Trap . | . . . . . . Miscellaneous . | . . . . . . Route ------- -11/Scrapyard -10/Materials (discovered 2 exits: *Mat / [*Min]) -10/Mines -9/Materials (discovered 5 exits: [*Mat x3] / *Min x2) -9/Mines (discovered 3 exits: [*Mat x2] / *Exi) -9/Exiles History --------- Turn | Location | Event 6 | -11/Scrapyard | Discovered new exit (range 16) 155 | -11/Scrapyard | Entered Materials 325 | -10/Materials | Build established: Mutant 689 | -10/Materials | Discovered new exit (range 6) 863 | -10/Materials | Discovered new exit (range 10) 885 | -10/Materials | Entered Mines 947 | -10/Mines | Met a Derelict bent on vengeance 1172 | -10/Mines | Learned location of Zion (-6) 1173 | -10/Mines | Received a Mining Laser from a helpful Derelict 1347 | -10/Mines | Learned Materials emergency access door positions 1491 | -10/Mines | Discovered new exit (range 4) 1546 | -10/Mines | Entered Materials 1546 | -9/Materials | Evolved 2 slots: Propulsion x1, Weapon x1 1725 | -9/Materials | Discovered new exit (range 16) 2325 | -9/Materials | Build established: Scavenger-Tank 2628 | -9/Materials | Discovered new exit (range 7) 2889 | -9/Materials | Discovered new exit (range 6) 3341 | -9/Materials | Discovered new exit (range 7) 3692 | -9/Materials | Identified exit to Mines 3776 | -9/Materials | Discovered new exit (range 16) 4192 | -9/Materials | Entered Mines 4244 | -9/Mines | Assembled infested the area 4271 | -9/Mines | Received a Rocket Launcher from a helpful Derelict 4556 | -9/Mines | Discovered new exit (range 4) 4683 | -9/Mines | Discovered new exit (range 9) 4911 | -9/Mines | Deemed a non-threat by the Exiles lab entrance 4911 | -9/Mines | Discovered new exit (range 5) 4921 | -9/Mines | Entered Exiles 4982 | -9/Exiles | Met 8R-AWN 5058 | -9/Exiles | Met EX-HEX 5224 | -9/Exiles | Met EX-DEC 5534 | -9/Exiles | Met EX-BIN 5568 | -9/Exiles | Aligned with FarCom system 5570 | -9/Exiles | Given EX-Vault access code 5625 | -9/Exiles | Opened EX-Vault 5688 | -9/Exiles | Warned to stay clear of 0b10 Research branches 5792 | -9/Exiles | Attacked by the Exiles 5903 | -9/Exiles | Core integrity fell below 50% 5976 | -9/Exiles | Core integrity fell below 20% 5997 | -9/Exiles | Lost 11 parts (1p5n2u3w) 6012 | -9/Exiles | Destroyed by 8R-AWN with 8R-AWN's Boregun Last Messages --------------- 05982_ Penetrated by HV Slug. 05982_ HV Slug penetrates Earth. 05982_ Penetrated by HV Slug. 05982_ HV Slug penetrates Earth. 05986_ HV Slug penetrates Machine. 05986_ Machine disabled. 05986_ Penetrated by HV Slug. 05986_ HV Slug penetrates Earth. 05991_ Penetrated by HV Slug. 05991_ HV Slug penetrates Earth. 05991_ Penetrated by HV Slug. 05991_ HV Slug penetrates Earth. 05995_ Penetrated by HV Slug. 05995_ HV Slug penetrates Earth. 05995_ Penetrated by HV Slug. 05995_ HV Slug penetrates Earth. 05999_ Penetrated by HV Slug. 06007_ Hvy. Assault Rifle destroyed. 06007_ HV Slug penetrates Wall. 06012_ Penetrated by HV Slug. Map ----- +----------------------------------------------------+ | ?????????????????????????????????????????????????? | | ?????????????????????????????????????????????????? | | ?????????????????????????????????????????????????? | | ?????????????????????????????????????????????????? | | ?????????????????????????????????????????????????? | | ?????????????????????????????????????????????????? | | ?????????????????????????????????????????????????? | | ?????????????????????????????????????????????????? | | ?????????????????????????????????????????????????? | | ?????????????????????????????????????????????????? | | ?????????????????????????????????????????????????? | | ???????????????????????????##????????????????????? | | ??????????????? ????????# #??#######???????????? | | ??????????????? ######??# #??#!!! "#???????????? | | ??????????????? #""#?# #??# #???????????? | | ???????????????? ?# #??# "#???????????? | | ???????????????" ## #?## ""#???????????? | | ???????????????? #;###" ""#???????????? | | ????????????????# ##" ""????????????? | | ?????????????????# #" ####??????????? | | ????????????????????# # ####???????" | | ???????????????????????# # #???????" | | ????????????????????????#; ## #?????? | | ?????????????????########" ##???????? | | ?????????????????# !!""" "!g! ?????? | | ?????????????????# ! @[[!###" "#???## | | ?????????????????# !!! !#?##" #####X | | ?????????????????# [!#;#?#" | | ?????????????????# ! " #;###?#" | | ???????????????# ;;####;;## #???### | | ?????????????? #????# #?# #??????# | | ???????????? ??????# ??# #????????## | | ???????????? ????????###??# #??????????## | | ??????????????????????????# #???????????## | | ??????????????????????????# #????????????##" | | ??????????????????????????? #?????????????#""" | | ??????????????????????????? #????????????##" | | ??????????????????????????? ?????????????#"" | | ??????????????????????????? ?????????????#""" | | ??????????????????????????? ?????????????""" | | ??????????????????????????? ?????????????""" | | ??????????????????????????? ????????????#"" | | ????????????????????????????????????????#""" | | ?????????????????????????????????????????"" | | ?????????????????????????????????????????#"" | | ?????????????????????????????????????????#"""" | | ??????????????????????????????????????????# | | ??????????????????????????????????????????#" | | ??????????????????????????????????????????#"""" | | ??????????????????????????????????????????#"" | +----------------------------------------------------+ Best States ------------- Heat Dissipation 28 Energy Generation 12 Energy Capacity 265 Matter Stores 300 Matter Capacity 300 Sight Range 16 Terrain Scan Density 10 Armor Coverage 225 Evasion (%) 50 Recoil Reduction 3 Salvage Targeting 1 Item Schematics ----------------- None Robot Schematics ------------------ None Fabricated ------------ Nothing Repaired ---------- Nothing Alien Tech Used ----------------- None Achievements -------------- None Challenges ------------ None Game ------ Seed MassRagnarokField Manual? 0 Play Time 00:31:28 Cumulative 199.8 hours Start 2025.08.25 @ 11:54:21 End 2025.08.25 @ 12:23:37 Sessions 1 Manual Loads 0 Difficulty Rogue Special Mode None Game No. 309 Rogue 309 Adventurer 0 Explorer 0 Win Type - Total 4 Types 3/0/1/0/0/0/0/0/0/0 Lore% 79 Gallery% 75 Achievement% 55 Wizard Run 0 Options --------- Layout 1 ASCII 0 Keyboard 0 Movement Mouse Keybinds 0 Fullscreen 1 Font 24/Smallcaps Map View 50x40 Zoom Use 0% Tactical HUD 1 Map Filters NONE Filters NONE Steam 1 RUN: b5a0f37f-0946-45a0-a8e3-7276cc0c9935